[Event "21st Indian-chT Women 2023-24"]
[Site "Dharamsala"]
[Date "2024.04.01"]
[Round "4.7"]
[White "Shresthi Gupta"]
[Black "Mehra Jyoti"]
[Result "1-0"]
[ECO "D02"]
[WhiteElo "1497"]
[BlackElo "1434"]
[Annotator "NA RC"]
[PlyCount "55"]
[EventDate "2024.03.28"]
[EventType "team-tourn"]
[EventCountry "IND"]
[SourceTitle "playchess.com"]
[Source "ChessBase"]
[SourceQuality "1"]
[TimeControl "5400+30"]

1. d4 {[%emt 0:00:04]} d5 {[%emt 0:00:05]} 2. Nf3 {[%emt 0:00:15]} Nf6 {[%emt 0:01:12]} 3. Bf4 {[%emt 0:00:16]} Bf5 {[%emt 0:00:36]} 4. e3 {[%emt 0:00:19]} e6 {[%emt 0:00:47]} 5. Bd3 {[%emt 0:01:00]} Nc6 {[%emt 0:02:16]} 6. Bxf5 {[%emt 0:03:31]} exf5 {[%emt 0:00:16]} 7. Nbd2 {[%emt 0:03:12]} Ne4 {[%emt 0:02:11]} 8. a3 {[%emt 0:07:05]} Be7 {[%emt 0:05:05]} 9. c4 {[%emt 0:05:44]} Nxd2 {[%emt 0:11:43]} 10. Nxd2 {[%emt 0:02:07]} Bd6 {[%emt 0:05:20]} 11. cxd5 {[%emt 0:11:38]} Bxf4 {[%emt 0:01:26]} 12. dxc6 {[%emt 0:00:22]} Bxe3 {[%emt 0:00:10]} 13. fxe3 {[%emt 0:03:40]} bxc6 {[%emt 0:00:07]} 14. O-O {[%emt 0:02:13]} g6 {[%emt 0:02:49]} 15. Qc2 {[%emt 0:01:30]} Qd5 {[%emt 0:02:08]} 16. Rac1 {[%emt 0:01:10]} Kd7 {[%emt 0:01:08]} 17. Qc5 {[%emt 0:02:20]} Rab8 {[%emt 0:06:01]} 18. b4 {[%emt 0:01:33]} Rb7 {[%emt 0:02:56]} 19. Nc4 {[%emt 0:00:50]} Qxc5 {[%emt 0:03:27]} 20. dxc5 {[%emt 0:00:18]} Re8 {[%emt 0:01:40]} 21. Rcd1+ {[%emt 0:01:45]} Ke6 {[%emt 0:01:15]} 22. Na5 {[%emt 0:00:59]} Rbb8 {[%emt 0:00:46]} 23. Nxc6 {[%emt 0:00:55]} Ra8 {[%emt 0:00:37]} 24. Rd4 {[%emt 0:00:55]} f6 {[%emt 0:02:19]} 25. Rfd1 {[%emt 0:00:31]} h6 {[%emt 0:03:10]} 26. Rd7 {[%emt 0:01:37]} a5 {[%emt 0:01:54]} 27. Rxc7 {[%emt 0:00:39]} axb4 {[%emt 0:00:18]} 28. Rd6# {[%emt 0:00:24]} 1-0

[Event "21st Indian-chT Women 2023-24"]
[Site "Dharamsala"]
[Date "2024.04.02"]
[Round "5.1"]
[White "Mudaliar Nandini"]
[Black "Gomes, Mary Ann"]
[Result "0-1"]
[ECO "A61"]
[WhiteElo "1672"]
[BlackElo "2322"]
[Annotator "RC"]
[PlyCount "80"]
[EventDate "2024.03.28"]
[EventType "team-tourn"]
[EventCountry "IND"]
[SourceTitle "playchess.com"]
[Source "ChessBase"]
[SourceQuality "1"]
[TimeControl "5400+30"]

1. d4 {[%emt 0:00:07]} Nf6 {[%emt 0:00:14]} 2. Nf3 {[%emt 0:00:09]} e6 {[%emt 0:00:08]} 3. c4 {[%emt 0:00:18]} c5 {[%emt 0:00:07]} 4. d5 {[%emt 0:01:15]} exd5 {[%emt 0:00:06]} 5. cxd5 {[%emt 0:00:05]} d6 {[%emt 0:00:04]} 6. Nc3 {[%emt 0:02:46]} g6 {[%emt 0:00:07]} 7. Bg5 {[%emt 0:00:34]} Bg7 {[%emt 0:00:49]} 8. Nd2 {[%emt 0:01:57]} h6 {[%emt 0:02:24]} 9. Bh4 {[%emt 0:00:24]} g5 {[%emt 0:01:23]} 10. Bg3 {[%emt 0:00:05]} Nh5 {[%emt 0:00:04]} 11. e4 {[%emt 0:01:22]} Nxg3 {[%emt 0:00:06]} 12. hxg3 {[%emt 0:00:09]} a6 {[%emt 0:00:29]} 13. a4 {[%emt 0:03:22]} Nd7 {[%emt 0:00:06]} 14. Nc4 {[%emt 0:03:29]} Ne5 {[%emt 0:00:21]} 15. Qd2 {[%emt 0:06:29]} Nxc4 {[%emt 0:03:49]} 16. Bxc4 {[%emt 0:00:07]} Bd7 {[%emt 0:00:11]} 17. a5 {[%emt 0:01:43]} b5 {[%emt 0:02:02]} 18. Be2 {[%emt 0:03:53]} Qe7 {[%emt 0:03:24]} 19. Qc2 {[%emt 0:02:26]} O-O {[%emt 0:05:48]} 20. g4 {[%emt 0:03:09]} Rfe8 {[%emt 0:02:07]} 21. Bf3 {[%emt 0:06:24]} f5 {[%emt 0:05:58]} 22. gxf5 {[%emt 0:01:04]} Bxf5 {[%emt 0:00:35]} 23. Kf1 {[%emt 0:00:37]} Bd7 {[%emt 0:03:26]} 24. Bh5 {[%emt 0:02:30]} Rf8 {[%emt 0:04:22]} 25. Re1 {[%emt 0:04:43]} b4 {[%emt 0:03:06]} 26. Nd1 {[%emt 0:00:57]} c4 {[%emt 0:08:56]} 27. Ne3 {[%emt 0:00:54]} b3 {[%emt 0:00:06]} 28. Qb1 {[%emt 0:03:01]} Qf6 {[%emt 0:07:13]} 29. f3 {[%emt 0:00:38]} Qf4 {[%emt 0:10:16]} 30. Qc1 {[%emt 0:01:45]} Rac8 {[%emt 0:02:21]} 31. Ng4 {[%emt 0:03:38]} Qxc1 {[%emt 0:01:55]} 32. Rxc1 {[%emt 0:00:07]} Bxb2 {[%emt 0:00:56]} 33. Nxh6+ {[%emt 0:00:44]} Kg7 {[%emt 0:00:05]} 34. Rb1 {[%emt 0:01:13]} c3 {[%emt 0:02:33]} 35. Kf2 {[%emt 0:01:44]} Rh8 {[%emt 0:01:57]} 36. Nf5+ {[%emt 0:02:40]} Bxf5 {[%emt 0:00:19]} 37. exf5 {[%emt 0:00:04]} Rxh5 {[%emt 0:01:23]} 38. Rxh5 {[%emt 0:00:08]} c2 {[%emt 0:00:20]} 39. Rbh1 {[%emt 0:00:17]} c1=Q {[%emt 0:00:35]} 40. Rh7+ {[%emt 0:00:12]} Kg8 {[%emt 0:00:27]} 0-1

[Event "21st Indian-chT Women 2023-24"]
[Site "Dharamsala"]
[Date "2024.04.02"]
[Round "5.2"]
[White "Mohota, Nisha"]
[Black "Jain Ashita"]
[Result "1-0"]
[ECO "B12"]
[WhiteElo "2122"]
[BlackElo "1729"]
[Annotator "RC"]
[PlyCount "81"]
[EventDate "2024.03.28"]
[EventType "team-tourn"]
[EventCountry "IND"]
[SourceTitle "playchess.com"]
[Source "ChessBase"]
[SourceQuality "1"]
[TimeControl "5400+30"]

1. e4 {[%emt 0:00:22]} c6 {[%emt 0:00:13]} 2. d4 {[%emt 0:00:08]} d5 {[%emt 0:00:09]} 3. e5 {[%emt 0:00:07]} c5 {[%emt 0:00:18]} 4. Nf3 {[%emt 0:00:25]} Nc6 {[%emt 0:01:36]} 5. dxc5 {[%emt 0:00:25]} Bg4 {[%emt 0:02:09]} 6. c3 {[%emt 0:00:24]} e6 {[%emt 0:01:10]} 7. Be3 {[%emt 0:00:32]} Nge7 {[%emt 0:02:30]} 8. Nbd2 {[%emt 0:00:48]} Ng6 {[%emt 0:02:12]} 9. Qa4 {[%emt 0:00:41]} Bxf3 {[%emt 0:04:04]} 10. Nxf3 {[%emt 0:00:04]} Qc7 {[%emt 0:07:03]} 11. Bb5 {[%emt 0:02:28]} a6 {[%emt 0:05:29]} 12. Bxc6+ {[%emt 0:08:33]} bxc6 {[%emt 0:00:09]} 13. O-O {[%emt 0:04:40]} Be7 {[%emt 0:02:22]} 14. Bd4 {[%emt 0:09:50]} O-O {[%emt 0:01:36]} 15. b4 {[%emt 0:00:34]} f6 {[%emt 0:13:19]} 16. Rfe1 {[%emt 0:03:23]} f5 {[%emt 0:02:51]} 17. c4 {[%emt 0:08:01]} Nf4 {[%emt 0:05:15]} 18. Qc2 {[%emt 0:06:23]} Rfb8 {[%emt 0:03:25]} 19. Qd2 {[%emt 0:05:36]} Ng6 {[%emt 0:04:38]} 20. cxd5 {[%emt 0:00:10]} cxd5 {[%emt 0:00:40]} 21. Bc3 {[%emt 0:04:48]} h6 {[%emt 0:07:17]} 22. g3 {[%emt 0:04:06]} Rf8 {[%emt 0:05:20]} 23. Nd4 {[%emt 0:04:49]} Qc8 {[%emt 0:01:18]} 24. Qe2 {[%emt 0:04:04]} a5 {[%emt 0:06:15]} 25. a3 {[%emt 0:01:10]} Kh7 {[%emt 0:01:29]} 26. f4 {[%emt 0:01:42]} Re8 {[%emt 0:04:02]} 27. c6 {[%emt 0:04:36]} Bd8 {[%emt 0:01:24]} 28. b5 {[%emt 0:01:06]} Bb6 {[%emt 0:00:48]} 29. a4 {[%emt 0:00:43]} Qc7 {[%emt 0:01:49]} 30. Kh1 {[%emt 0:00:45]} Rad8 {[%emt 0:02:20]} 31. Qd2 {[%emt 0:02:02]} Qa7 {[%emt 0:01:49]} 32. Nb3 {[%emt 0:01:10]} Ra8 {[%emt 0:02:03]} 33. Bd4 {[%emt 0:00:33]} Ne7 {[%emt 0:00:12]} 34. Bxb6 {[%emt 0:01:39]} Qxb6 {[%emt 0:00:46]} 35. Rec1 {[%emt 0:02:07]} Nc8 {[%emt 0:01:13]} 36. c7 {[%emt 0:01:48]} Qa7 {[%emt 0:02:43]} 37. Rc6 {[%emt 0:01:26]} Nb6 {[%emt 0:03:19]} 38. Qxa5 {[%emt 0:03:14]} Nc4 {[%emt 0:03:09]} 39. Qxa7 {[%emt 0:00:27]} Rxa7 {[%emt 0:00:01]} 40. c8=Q {[%emt 0:00:38]} Rxc8 {[%emt 0:00:09]} 41. Rxc8 {[%emt 0:00:09]} 1-0

[Event "21st Indian-chT Women 2023-24"]
[Site "Dharamsala"]
[Date "2024.04.02"]
[Round "5.3"]
[White "Arpita Patankar"]
[Black "Soumya, Swaminathan"]
[Result "0-1"]
[ECO "B07"]
[WhiteElo "1641"]
[BlackElo "2259"]
[Annotator "RC"]
[PlyCount "120"]
[EventDate "2024.03.28"]
[EventType "team-tourn"]
[EventCountry "IND"]
[SourceTitle "playchess.com"]
[Source "ChessBase"]
[SourceQuality "1"]
[TimeControl "5400+30"]

1. d4 {[%emt 0:00:02]} Nf6 {[%emt 0:00:04]} 2. Nf3 {[%emt 0:00:06]} g6 {[%emt 0:00:08]} 3. Nbd2 {[%emt 0:00:13]} Bg7 {[%emt 0:09:16]} 4. e4 {[%emt 0:00:14]} d6 {[%emt 0:00:03]} 5. Bb5+ {[%emt 0:00:27]} Nfd7 {[%emt 0:03:06]} 6. O-O {[%emt 0:01:43]} O-O {[%emt 0:10:23]} 7. c3 {[%emt 0:04:53]} e5 {[%emt 0:01:36]} 8. Nb3 {[%emt 0:08:18]} h6 {[%emt 0:14:21]} 9. Re1 {[%emt 0:16:40]} a6 {[%emt 0:00:32]} 10. Bd3 {[%emt 0:00:40]} Nc6 {[%emt 0:00:10]} 11. Bc2 {[%emt 0:02:46]} a5 {[%emt 0:07:54]} 12. a4 {[%emt 0:01:58]} b6 {[%emt 0:03:38]} 13. h3 {[%emt 0:10:07]} Qe7 {[%emt 0:05:41]} 14. Bd2 {[%emt 0:04:01]} Nd8 {[%emt 0:02:34]} 15. Bd3 {[%emt 0:02:12]} Ba6 {[%emt 0:03:35]} 16. Bxa6 {[%emt 0:01:16]} Rxa6 {[%emt 0:00:53]} 17. Qe2 {[%emt 0:06:20]} Ra7 {[%emt 0:00:06]} 18. Qc4 {[%emt 0:04:52]} Nf6 {[%emt 0:02:43]} 19. dxe5 {[%emt 0:04:07]} dxe5 {[%emt 0:00:02]} 20. Qb5 {[%emt 0:00:15]} Ne8 {[%emt 0:01:28]} 21. Nc1 {[%emt 0:07:34]} Nd6 {[%emt 0:02:38]} 22. Qe2 {[%emt 0:00:29]} Qe6 {[%emt 0:02:25]} 23. Nh2 {[%emt 0:04:27]} N8b7 {[%emt 0:06:07]} 24. f4 {[%emt 0:01:56]} exf4 {[%emt 0:01:27]} 25. Bxf4 {[%emt 0:00:02]} g5 {[%emt 0:01:13]} 26. Bxd6 {[%emt 0:01:07]} cxd6 {[%emt 0:03:23]} 27. Ng4 {[%emt 0:01:12]} Re8 {[%emt 0:01:23]} 28. Nf2 {[%emt 0:00:34]} Nc5 {[%emt 0:00:25]} 29. Ncd3 {[%emt 0:01:40]} Nb3 {[%emt 0:05:50]} 30. Rad1 {[%emt 0:01:00]} Rae7 {[%emt 0:00:27]} 31. Qc2 {[%emt 0:02:00]} Nc5 {[%emt 0:01:52]} 32. Nxc5 {[%emt 0:00:53]} dxc5 {[%emt 0:00:10]} 33. Rd2 {[%emt 0:01:19]} h5 {[%emt 0:01:55]} 34. Qd1 {[%emt 0:01:47]} Qg6 {[%emt 0:00:02]} 35. Rd8 {[%emt 0:01:41]} Kh7 {[%emt 0:01:53]} 36. Rxe8 {[%emt 0:02:27]} Rxe8 {[%emt 0:00:02]} 37. Kf1 {[%emt 0:00:21]} Be5 {[%emt 0:01:05]} 38. Qf3 {[%emt 0:01:31]} Re6 {[%emt 0:02:34]} 39. Qf5 {[%emt 0:01:21]} Bg3 {[%emt 0:00:05]} 40. Qxg6+ {[%emt 0:00:34]} Kxg6 {[%emt 0:00:02]} 41. Re3 {[%emt 0:00:07]} h4 {[%emt 0:01:00]} 42. Ng4 {[%emt 0:01:12]} f6 {[%emt 0:03:07]} 43. b3 {[%emt 0:02:34]} Bf4 {[%emt 0:02:04]} 44. Re2 {[%emt 0:00:36]} Re8 {[%emt 0:01:25]} 45. Kf2 {[%emt 0:00:53]} Bg3+ {[%emt 0:00:26]} 46. Kf3 {[%emt 0:00:40]} Rd8 {[%emt 0:00:19]} 47. Rc2 {[%emt 0:01:32]} Rd1 {[%emt 0:01:06]} 48. Ne3 {[%emt 0:00:41]} Rb1 {[%emt 0:00:15]} 49. Nf5 {[%emt 0:00:55]} Be5 {[%emt 0:00:25]} 50. Ne7+ {[%emt 0:00:33]} Kf7 {[%emt 0:00:11]} 51. Nd5 {[%emt 0:00:07]} Rxb3 {[%emt 0:00:12]} 52. Ke3 {[%emt 0:00:24]} c4 {[%emt 0:00:15]} 53. Kd2 {[%emt 0:00:40]} Ke6 {[%emt 0:00:18]} 54. Kc1 {[%emt 0:00:37]} f5 {[%emt 0:00:45]} 55. Rb2 {[%emt 0:00:41]} fxe4 {[%emt 0:00:24]} 56. Rxb3 {[%emt 0:00:32]} cxb3 {[%emt 0:00:04]} 57. Nxb6 {[%emt 0:00:14]} Bxc3 {[%emt 0:00:04]} 58. Nc4 {[%emt 0:00:25]} Kd5 {[%emt 0:01:00]} 59. Na3 {[%emt 0:00:09]} Kd4 {[%emt 0:00:25]} 60. Kd1 {[%emt 0:01:05]} Ke5 {[%emt 0:00:50]} 0-1

[Event "21st Indian-chT Women 2023-24"]
[Site "Dharamsala"]
[Date "2024.04.02"]
[Round "5.4"]
[White "Salonika, Saina"]
[Black "Manya Abhishek Drolia"]
[Result "1-0"]
[ECO "C87"]
[WhiteElo "2096"]
[BlackElo "1482"]
[Annotator "RC"]
[PlyCount "65"]
[EventDate "2024.03.28"]
[EventType "team-tourn"]
[EventCountry "IND"]
[SourceTitle "playchess.com"]
[Source "ChessBase"]
[SourceQuality "1"]
[TimeControl "5400+30"]

1. e4 {[%emt 0:00:05]} e5 {[%emt 0:00:07]} 2. Nf3 {[%emt 0:00:07]} Nc6 {[%emt 0:00:09]} 3. Bb5 {[%emt 0:00:05]} a6 {[%emt 0:00:08]} 4. Ba4 {[%emt 0:00:04]} Be7 {[%emt 0:00:12]} 5. O-O {[%emt 0:00:58]} Nf6 {[%emt 0:02:27]} 6. Re1 {[%emt 0:05:19]} d6 {[%emt 0:02:45]} 7. c3 {[%emt 0:00:58]} O-O {[%emt 0:01:54]} 8. h3 {[%emt 0:02:40]} h6 {[%emt 0:00:24]} 9. d4 {[%emt 0:01:33]} exd4 {[%emt 0:02:47]} 10. cxd4 {[%emt 0:01:24]} Re8 {[%emt 0:02:58]} 11. d5 {[%emt 0:02:52]} b5 {[%emt 0:02:43]} 12. dxc6 {[%emt 0:00:13]} bxa4 {[%emt 0:00:11]} 13. Nc3 {[%emt 0:06:56]} Bf8 {[%emt 0:03:11]} 14. Qxa4 {[%emt 0:01:44]} Nh7 {[%emt 0:04:32]} 15. Qa5 {[%emt 0:05:26]} Be6 {[%emt 0:02:38]} 16. Bf4 {[%emt 0:03:58]} Qf6 {[%emt 0:03:11]} 17. Bg3 {[%emt 0:01:56]} Bxh3 {[%emt 0:04:27]} 18. Nd5 {[%emt 0:00:43]} Qd8 {[%emt 0:05:56]} 19. gxh3 {[%emt 0:00:18]} Ra7 {[%emt 0:01:06]} 20. b4 {[%emt 0:05:09]} Ng5 {[%emt 0:02:01]} 21. Nxg5 {[%emt 0:00:06]} Qxg5 {[%emt 0:00:21]} 22. b5 {[%emt 0:01:53]} h5 {[%emt 0:07:14]} 23. h4 {[%emt 0:00:07]} Qg4 {[%emt 0:00:14]} 24. Nxc7 {[%emt 0:01:18]} Rc8 {[%emt 0:03:56]} 25. b6 {[%emt 0:00:08]} Raxc7 {[%emt 0:00:24]} 26. bxc7 {[%emt 0:00:06]} Be7 {[%emt 0:00:10]} 27. Rab1 {[%emt 0:01:31]} Bxh4 {[%emt 0:00:44]} 28. Rb8 {[%emt 0:00:32]} Bxg3 {[%emt 0:00:23]} 29. Qf5 {[%emt 0:01:11]} Bxf2+ {[%emt 0:05:58]} 30. Kxf2 {[%emt 0:00:06]} Qh4+ {[%emt 0:00:10]} 31. Kg2 {[%emt 0:00:10]} g6 {[%emt 0:00:40]} 32. Qxc8+ {[%emt 0:00:16]} Kg7 {[%emt 0:00:07]} 33. Qh8# {[%emt 0:00:05]} 1-0

[Event "21st Indian-chT Women 2023-24"]
[Site "Dharamsala"]
[Date "2024.04.02"]
[Round "5.5"]
[White "Gade Sharanya"]
[Black "Kiran, Manisha Mohanty"]
[Result "0-1"]
[ECO "E35"]
[WhiteElo "1728"]
[BlackElo "2036"]
[Annotator "RC"]
[PlyCount "104"]
[EventDate "2024.03.28"]
[EventType "team-tourn"]
[EventCountry "IND"]
[SourceTitle "playchess.com"]
[Source "ChessBase"]
[SourceQuality "1"]
[TimeControl "5400+30"]

1. d4 {[%emt 0:00:02]} Nf6 {[%emt 0:00:07]} 2. c4 {[%emt 0:00:09]} e6 {[%emt 0:00:08]} 3. Nc3 {[%emt 0:00:06]} Bb4 {[%emt 0:00:04]} 4. Qc2 {[%emt 0:00:05]} d5 {[%emt 0:01:07]} 5. cxd5 {[%emt 0:00:30]} exd5 {[%emt 0:00:06]} 6. Bg5 {[%emt 0:00:14]} h6 {[%emt 0:00:22]} 7. Bh4 {[%emt 0:00:19]} O-O {[%emt 0:02:29]} 8. e3 {[%emt 0:01:11]} c5 {[%emt 0:00:06]} 9. dxc5 {[%emt 0:02:31]} Nbd7 {[%emt 0:00:33]} 10. Nf3 {[%emt 0:21:30]} Qa5 {[%emt 0:04:58]} 11. Bd3 {[%emt 0:12:52]} Ne4 {[%emt 0:04:35]} 12. O-O {[%emt 0:00:41]} Bxc3 {[%emt 0:12:20]} 13. bxc3 {[%emt 0:00:30]} Ndxc5 {[%emt 0:00:11]} 14. c4 {[%emt 0:01:03]} Nxd3 {[%emt 0:08:19]} 15. Qxd3 {[%emt 0:00:28]} Be6 {[%emt 0:00:06]} 16. cxd5 {[%emt 0:21:03]} Qxd5 {[%emt 0:00:06]} 17. Nd4 {[%emt 0:05:05]} Rac8 {[%emt 0:03:57]} 18. Rfc1 {[%emt 0:03:24]} Rxc1+ {[%emt 0:05:03]} 19. Rxc1 {[%emt 0:00:08]} Rc8 {[%emt 0:00:37]} 20. Rxc8+ {[%emt 0:01:28]} Bxc8 {[%emt 0:00:10]} 21. Qc2 {[%emt 0:03:08]} Be6 {[%emt 0:02:53]} 22. f3 {[%emt 0:04:27]} Nd6 {[%emt 0:00:26]} 23. Nxe6 {[%emt 0:01:33]} Qxe6 {[%emt 0:00:38]} 24. e4 {[%emt 0:00:23]} b5 {[%emt 0:12:27]} 25. Bg3 {[%emt 0:06:51]} Nc4 {[%emt 0:01:07]} 26. Qb3 {[%emt 0:03:14]} Qd7 {[%emt 0:02:44]} 27. h4 {[%emt 0:02:33]} a6 {[%emt 0:02:40]} 28. Kh2 {[%emt 0:02:42]} Qd2 {[%emt 0:03:58]} 29. Qb1 {[%emt 0:04:52]} Ne3 {[%emt 0:11:58]} 30. Qg1 {[%emt 0:00:11]} Qe2 {[%emt 0:01:01]} 31. Kh3 {[%emt 0:00:28]} Qd3 {[%emt 0:01:10]} 32. Bf4 {[%emt 0:00:59]} Qd7+ {[%emt 0:01:30]} 33. Kh2 {[%emt 0:00:26]} Nc4 {[%emt 0:00:04]} 34. Qc5 {[%emt 0:00:30]} Qd8 {[%emt 0:01:11]} 35. g3 {[%emt 0:00:37]} Qd7 {[%emt 0:02:04]} 36. a4 {[%emt 0:00:39]} Nb2 {[%emt 0:00:31]} 37. axb5 {[%emt 0:01:04]} Qxb5 {[%emt 0:01:26]} 38. Qc8+ {[%emt 0:00:47]} Kh7 {[%emt 0:00:11]} 39. Qc2 {[%emt 0:01:37]} Nc4 {[%emt 0:01:03]} 40. e5+ {[%emt 0:00:00]} Kg8 {[%emt 0:00:09]} 41. Qf5 {[%emt 0:00:00]} Nb6 {[%emt 0:04:21]} 42. Qc2 {[%emt 0:00:32]} Qc4 {[%emt 0:01:18]} 43. Qd2 {[%emt 0:00:33]} Nd5 {[%emt 0:00:58]} 44. Be3 {[%emt 0:00:33]} a5 {[%emt 0:00:23]} 45. Bf2 {[%emt 0:00:30]} a4 {[%emt 0:00:09]} 46. Qa5 {[%emt 0:00:07]} Kh7 {[%emt 0:01:29]} 47. Qa7 {[%emt 0:00:25]} Nc3 {[%emt 0:00:31]} 48. Bc5 {[%emt 0:00:56]} Qe2+ {[%emt 0:00:56]} 49. Kh3 {[%emt 0:00:27]} Qxf3 {[%emt 0:00:16]} 50. e6 {[%emt 0:00:16]} Ne4 {[%emt 0:02:19]} 51. Qc7 {[%emt 0:00:43]} Qh1+ {[%emt 0:00:36]} 52. Kg4 {[%emt 0:00:11]} Nf6+ {[%emt 0:00:06]} 0-1

[Event "21st Indian-chT Women 2023-24"]
[Site "Dharamsala"]
[Date "2024.04.02"]
[Round "5.6"]
[White "Swati Ghate"]
[Black "Velpula Sarayu"]
[Result "0-1"]
[ECO "B50"]
[WhiteElo "2012"]
[BlackElo "2389"]
[Annotator "RC"]
[PlyCount "62"]
[EventDate "2024.03.28"]
[EventType "team-tourn"]
[EventCountry "IND"]
[SourceTitle "playchess.com"]
[Source "ChessBase"]
[SourceQuality "1"]
[TimeControl "5400+30"]

1. e4 {[%emt 0:01:41]} c5 {[%emt 0:00:28]} 2. Nf3 {[%emt 0:00:10]} d6 {[%emt 0:00:29]} 3. c3 {[%emt 0:00:09]} Nf6 {[%emt 0:00:31]} 4. h3 {[%emt 0:00:15]} Nc6 {[%emt 0:00:37]} 5. Bd3 {[%emt 0:00:17]} a6 {[%emt 0:07:35]} 6. Bc2 {[%emt 0:00:48]} e6 {[%emt 0:01:37]} 7. O-O {[%emt 0:00:25]} Be7 {[%emt 0:01:36]} 8. d4 {[%emt 0:01:21]} O-O {[%emt 0:07:46]} 9. Re1 {[%emt 0:03:49]} b5 {[%emt 0:05:52]} 10. Nbd2 {[%emt 0:05:35]} cxd4 {[%emt 0:11:05]} 11. cxd4 {[%emt 0:01:06]} Bb7 {[%emt 0:00:36]} 12. a3 {[%emt 0:03:11]} Rc8 {[%emt 0:01:20]} 13. Nf1 {[%emt 0:04:01]} Qc7 {[%emt 0:05:06]} 14. Bd3 {[%emt 0:00:22]} Rfd8 {[%emt 0:10:32]} 15. Ng3 {[%emt 0:01:25]} g6 {[%emt 0:01:36]} 16. Bd2 {[%emt 0:14:44]} Qb8 {[%emt 0:07:35]} 17. Bc3 {[%emt 0:06:57]} Nd7 {[%emt 0:01:19]} 18. Qd2 {[%emt 0:06:15]} Bf6 {[%emt 0:02:31]} 19. h4 {[%emt 0:10:03]} Bg7 {[%emt 0:11:04]} 20. h5 {[%emt 0:00:27]} Qa7 {[%emt 0:03:58]} 21. Bf1 {[%emt 0:10:19]} e5 {[%emt 0:05:38]} 22. d5 {[%emt 0:01:06]} Nd4 {[%emt 0:01:47]} 23. Bxd4 {[%emt 0:09:23]} exd4 {[%emt 0:00:03]} 24. Rad1 {[%emt 0:00:11]} Re8 {[%emt 0:02:44]} 25. Nxd4 {[%emt 0:02:25]} Be5 {[%emt 0:00:34]} 26. Nge2 {[%emt 0:06:20]} Nf6 {[%emt 0:02:49]} 27. hxg6 {[%emt 0:00:03]} hxg6 {[%emt 0:00:09]} 28. Nc3 {[%emt 0:00:08]} Kg7 {[%emt 0:00:31]} 29. f4 {[%emt 0:02:40]} Rh8 {[%emt 0:00:26]} 30. Qf2 {[%emt 0:05:51]} Kg8 {[%emt 0:02:44]} 31. Nde2 {[%emt 0:01:32]} Rh1+ {[%emt 0:00:05]} 0-1

[Event "21st Indian-chT Women 2023-24"]
[Site "Dharamsala"]
[Date "2024.04.02"]
[Round "5.7"]
[White "Sai Mahati Alapati"]
[Black "Anagha Yardi"]
[Result "1-0"]
[ECO "D11"]
[WhiteElo "2155"]
[BlackElo "1482"]
[Annotator "RC"]
[PlyCount "81"]
[EventDate "2024.03.28"]
[EventType "team-tourn"]
[EventCountry "IND"]
[SourceTitle "playchess.com"]
[Source "ChessBase"]
[SourceQuality "1"]
[TimeControl "5400+30"]

1. d4 {[%emt 0:00:09]} d5 {[%emt 0:00:10]} 2. c4 {[%emt 0:00:20]} c6 {[%emt 0:00:08]} 3. Nc3 {[%emt 0:00:09]} Nf6 {[%emt 0:00:38]} 4. e3 {[%emt 0:00:12]} Bg4 {[%emt 0:00:49]} 5. Nf3 {[%emt 0:03:33]} e6 {[%emt 0:00:55]} 6. h3 {[%emt 0:02:37]} Bh5 {[%emt 0:00:22]} 7. Be2 {[%emt 0:01:36]} Be7 {[%emt 0:00:19]} 8. O-O {[%emt 0:03:40]} O-O {[%emt 0:02:23]} 9. b3 {[%emt 0:07:05]} Nbd7 {[%emt 0:02:05]} 10. Bb2 {[%emt 0:00:20]} Qc7 {[%emt 0:01:28]} 11. Rc1 {[%emt 0:01:20]} Rac8 {[%emt 0:01:11]} 12. Ne5 {[%emt 0:17:15]} Bxe2 {[%emt 0:01:54]} 13. Qxe2 {[%emt 0:00:13]} Rfd8 {[%emt 0:02:35]} 14. Nd3 {[%emt 0:04:25]} Qb8 {[%emt 0:08:26]} 15. Rfd1 {[%emt 0:02:38]} Bd6 {[%emt 0:00:26]} 16. e4 {[%emt 0:05:05]} e5 {[%emt 0:03:41]} 17. dxe5 {[%emt 0:06:09]} Nxe5 {[%emt 0:00:28]} 18. cxd5 {[%emt 0:07:10]} cxd5 {[%emt 0:04:45]} 19. Nxd5 {[%emt 0:02:11]} Nxd5 {[%emt 0:02:09]} 20. Rxc8 {[%emt 0:01:44]} Rxc8 {[%emt 0:00:16]} 21. exd5 {[%emt 0:01:02]} Nxd3 {[%emt 0:00:49]} 22. Qxd3 {[%emt 0:01:38]} Re8 {[%emt 0:00:22]} 23. Bc3 {[%emt 0:03:34]} b6 {[%emt 0:02:09]} 24. Re1 {[%emt 0:01:05]} Rxe1+ {[%emt 0:06:02]} 25. Bxe1 {[%emt 0:00:03]} Be5 {[%emt 0:00:11]} 26. Bc3 {[%emt 0:03:17]} Bd6 {[%emt 0:01:20]} 27. Qd4 {[%emt 0:01:16]} f6 {[%emt 0:00:23]} 28. Bb4 {[%emt 0:01:36]} Kf7 {[%emt 0:04:09]} 29. Bxd6 {[%emt 0:03:11]} Qxd6 {[%emt 0:00:11]} 30. Qc4 {[%emt 0:00:10]} Qc5 {[%emt 0:04:14]} 31. Kf1 {[%emt 0:01:01]} Qxc4+ {[%emt 0:01:21]} 32. bxc4 {[%emt 0:00:06]} a6 {[%emt 0:00:06]} 33. Ke2 {[%emt 0:00:23]} Ke7 {[%emt 0:00:06]} 34. Kd3 {[%emt 0:00:07]} Kd6 {[%emt 0:00:13]} 35. Kd4 {[%emt 0:00:02]} a5 {[%emt 0:01:36]} 36. a4 {[%emt 0:00:20]} g6 {[%emt 0:00:12]} 37. f4 {[%emt 0:01:30]} f5 {[%emt 0:00:42]} 38. h4 {[%emt 0:00:10]} h6 {[%emt 0:00:42]} 39. g3 {[%emt 0:01:25]} h5 {[%emt 0:00:10]} 40. c5+ {[%emt 0:00:11]} bxc5+ {[%emt 0:01:49]} 41. Kc4 {[%emt 0:00:30]} 1-0

[Event "21st Indian-chT Women 2023-24"]
[Site "Dharamsala"]
[Date "2024.04.03"]
[Round "6.1"]
[White "Vishwa Vasnawala"]
[Black "Nishad, Monika"]
[Result "1-0"]
[ECO "D11"]
[WhiteElo "2111"]
[BlackElo "1729"]
[Annotator "RC"]
[PlyCount "60"]
[EventDate "2024.03.28"]
[EventType "team-tourn"]
[EventCountry "IND"]
[SourceTitle "playchess.com"]
[Source "ChessBase"]
[SourceQuality "1"]
[TimeControl "5400+30"]

1. d4 {[%emt 0:00:04]} d5 {[%emt 0:00:16]} 2. c4 {[%emt 0:00:07]} c6 {[%emt 0:00:29]} 3. Nf3 {[%emt 0:00:12]} Bg4 {[%emt 0:01:46]} 4. Ne5 {[%emt 0:10:09]} Be6 {[%emt 0:03:25]} 5. e3 {[%emt 0:09:08]} Nd7 {[%emt 0:03:16]} 6. Nf3 {[%emt 0:06:56]} dxc4 {[%emt 0:06:06]} 7. Nbd2 {[%emt 0:02:12]} b5 {[%emt 0:02:32]} 8. Ng5 {[%emt 0:06:55]} Ndf6 {[%emt 0:06:21]} 9. Nxe6 {[%emt 0:01:18]} fxe6 {[%emt 0:00:10]} 10. Be2 {[%emt 0:07:26]} g6 {[%emt 0:02:48]} 11. h4 {[%emt 0:02:50]} Bg7 {[%emt 0:02:48]} 12. g4 {[%emt 0:04:01]} Nd5 {[%emt 0:02:08]} 13. Nf3 {[%emt 0:07:05]} Ngf6 {[%emt 0:09:20]} 14. g5 {[%emt 0:03:09]} Nd7 {[%emt 0:04:44]} 15. h5 {[%emt 0:06:21]} Qc7 {[%emt 0:06:42]} 16. h6 {[%emt 0:04:24]} Bf8 {[%emt 0:00:47]} 17. e4 {[%emt 0:01:11]} N5b6 {[%emt 0:01:48]} 18. e5 {[%emt 0:04:59]} O-O-O {[%emt 0:03:10]} 19. Qc2 {[%emt 0:02:07]} c5 {[%emt 0:04:02]} 20. Be3 {[%emt 0:01:45]} Nd5 {[%emt 0:01:41]} 21. a4 {[%emt 0:03:28]} Nxe3 {[%emt 0:04:57]} 22. fxe3 {[%emt 0:00:02]} Qa5+ {[%emt 0:00:41]} 23. Kf2 {[%emt 0:02:25]} Kb8 {[%emt 0:05:45]} 24. axb5 {[%emt 0:00:32]} Qxb5 {[%emt 0:00:13]} 25. Bxc4 {[%emt 0:00:23]} Qb6 {[%emt 0:00:18]} 26. Ra6 {[%emt 0:02:09]} Qb4 {[%emt 0:00:21]} 27. Qb3 {[%emt 0:02:54]} Qxb3 {[%emt 0:03:44]} 28. Bxb3 {[%emt 0:00:01]} Kb7 {[%emt 0:00:29]} 29. Rha1 {[%emt 0:00:21]} Ra8 {[%emt 0:00:17]} 30. Bxe6 {[%emt 0:01:09]} cxd4 {[%emt 0:02:43]} 1-0